bitfinex-derivatives/quotes_SOLF0:USTF0_20250714
["timestamp","ask_amount","ask_price","bid_price","bid_amount"]
[1752503969208,6.77918323,165.97,165.84,6.77918323]
[1752503970304,6.77918323,165.97,165.87,6.77918323]
[1752503970504,6.77918323,165.97,165.81,520.56]
[1752503970708,6.77918323,165.94,165.87,6.0271]
[1752503970910,189.32,165.97,165.84,6.77918323]
[1752503970911,6.77918323,165.96,165.84,6.77918323]
[1752503972500,6.77918323,165.96,165.88,6.0267]
[1752503972902,189.32,165.97,165.84,6.77918323]
[1752503973208,196.09918323,165.97,165.84,6.77918323]
[1752503973414,189.32,165.97,165.84,6.77918323]
[1752503973613,527.38082774,166.01,165.9,6.78082774]
[1752503973912,520.6,166.01,165.92,6.78082774]
[1752503974317,520.6,166.01,165.88,5.00889682]
[1752503974517,520.6,166.01,165.89,6.77699477]
[1752503974808,520.6,166.01,165.92,6.77699477]
[1752503975014,520.6,166.01,165.97,6.0234]
[1752503975315,520.6,166.01,165.92,6.77699477]
[1752503975512,520.6,166.01,165.95,6.77699477]
[1752503975711,189.3,166.02,165.95,6.77699477]
[1752503976112,189.3,166.02,165.9,5.00889682]
[1752503976311,196.07699477,166.02,165.91,6.77699477]
[1752503976713,196.07699477,166.02,165.95,6.0241]
[1752503976910,189.3,166.02,165.94,6.77699477]
[1752503977315,189.3,166.02,165.98,6.0231]
[1752503977514,189.3,166.02,165.94,6.77699477]
[1752503978021,520.7,166.09,165.97,6.77699477]
[1752503978217,6.77699477,166.12,166.0,6.77699477]
[1752503978417,6.77699477,166.12,166.04,6.0211]
[1752503978617,6.77699477,166.12,166.0,6.77699477]
[1752503978812,6.77699477,166.12,165.96,5.00889682]
[1752503979014,6.77699477,166.12,166.02,6.77699477]
[1752503979318,6.77699477,166.12,165.99,6.77699477]
[1752503979618,6.77699477,166.09,165.97,6.77699477]
[1752503980113,6.77699477,166.09,166.0,6.0222]
[1752503980317,6.77699477,166.09,165.97,6.77699477]
[1752503980509,6.77699477,166.09,165.94,5.00889682]
[1752503980510,6.77699477,166.09,166.0,6.0223]
[1752503980917,6.77699477,166.12,165.96,5.00889682]
[1752503981214,6.77699477,166.1,165.99,6.77699477]
[1752503981717,6.77699477,166.1,165.97,5.00889682]
[1752503981920,6.77699477,166.1,166.0,6.77699477]
[1752503982518,1.99950876,166.14,166.03,6.77699477]
[1752503982717,189.24,166.15,166.06,6.77699477]
[1752503983017,189.16,166.16,166.03,6.77699477]
[1752503983218,6.77699477,166.14,166.01,5.00889682]
[1752503983418,6.77699477,166.11,166.01,6.77699477]
[1752503983822,6.77699477,166.11,165.99,6.77699477]
[1752503984210,6.77699477,166.08,165.96,6.77699477]
[1752503984722,6.77699477,166.09,165.96,6.77699477]
[1752503985022,195.89699477,166.09,165.99,6.77699477]
[1752503985317,189.12,166.09,165.99,6.77699477]
[1752503985910,189.12,166.09,166.01,6.0219]
[1752503986517,189.12,166.09,165.99,6.77699477]
[1752503986720,189.12,166.09,166.02,6.77699477]
[1752503987022,6.77699477,166.14,166.03,6.77699477]
[1752503987416,6.77699477,166.14,165.99,6.77699477]
[1752503987621,6.77699477,166.14,166.04,6.021]
[1752503988223,6.77699477,166.07,165.96,5.00889682]
[1752503988422,6.77699477,166.07,165.96,6.77699477]
[1752503988721,208.18814542,166.15,165.99,6.77699477]
[1752503988923,6.77699477,166.12,165.99,6.77699477]
[1752503989424,6.77699477,166.09,165.99,6.77699477]
[1752503989623,189.06,166.13,165.99,6.77699477]
[1752503989920,189.06,166.13,166.02,6.77699477]
[1752503991220,189.06,166.13,166.03,6.77699477]
[1752503991530,189.06,166.13,166.06,6.77699477]
[1752503992024,189.06,166.13,166.02,6.77699477]
[1752503992225,6.77699477,166.11,166.0,6.77699477]
[1752503992424,6.77699477,166.11,166.01,6.0222]
[1752503992923,6.77699477,166.11,166.0,6.0225]
[1752503993225,189.0,166.12,165.95,6.77699477]
[1752503993226,6.77699477,166.08,165.95,6.77699477]
[1752503993524,6.77699477,166.08,165.99,6.0229]
[1752503993927,6.77699477,166.08,165.95,6.77699477]
[1752503994323,6.77699477,166.08,165.96,6.77699477]
[1752503996521,18.06,166.12,165.93,5.00889682]
[1752503996718,6.77699477,166.08,165.97,6.77699477]
[1752503996922,6.77699477,166.08,166.0,6.0225]
[1752503997122,6.77699477,166.08,165.97,6.77699477]
[1752503997323,6.77699477,166.08,165.93,5.00889682]
[1752503997626,6.77699477,166.08,166.01,6.0222]
[1752503998027,6.77699477,166.08,166.01,6.022]
[1752503998222,6.77699477,166.08,165.97,6.77699477]
[1752503999129,6.77699477,166.09,165.97,6.77699477]
[1752503999528,6.77699477,166.09,165.93,5.00889682]
[1752503999827,6.77699477,166.09,165.97,6.77699477]
[1752504000230,6.77699477,166.12,166.0,6.77699477]
[1752504001936,6.77699477,166.12,165.95,5.00889682]
[1752504001937,6.77699477,166.12,166.02,6.77699477]
[1752504002228,6.77699477,166.12,165.95,5.00889682]
[1752504002423,6.77699477,166.12,166.03,6.0215]
[1752504002622,6.77699477,166.12,165.99,6.77699477]
[1752504002828,188.96,166.13,166.02,6.77699477]
[1752504003027,188.96,166.13,166.05,6.77699477]
[1752504003229,188.96,166.13,165.99,6.77699477]
[1752504003426,6.77699477,166.19,166.08,6.77699477]
[1752504003624,541.20764493,166.2,166.11,6.77699477]
[1752504004135,188.88,166.24,166.14,6.77699477]
[1752504004330,188.88,166.24,166.02,18.72222909]
[1752504004331,195.64046362,166.24,166.13,6.76046362]
[1752504004523,6.76046362,166.2,166.09,6.76046362]
[1752504005129,6.76046362,166.2,166.12,6.0181]
[1752504005331,6.76046362,166.2,166.09,6.76046362]
[1752504005525,6.76046362,166.2,166.01,520.36]
[1752504005526,6.76046362,166.18,166.07,6.76046362]
[1752504005834,6.76046362,166.18,166.09,6.019]
[1752504006233,6.76046362,166.18,166.07,6.76046362]
[1752504006940,6.76046362,166.18,166.04,6.76046362]
[1752504007133,24.82046362,166.21,166.05,6.0205]
[1752504007134,6.76046362,166.15,166.05,6.0205]
[1752504007534,6.76046362,166.15,166.02,6.76046362]
[1752504007936,6.76046362,166.15,166.05,6.0207]
[1752504008135,196.42572887,166.24,166.04,6.76799595]
[1752504008136,6.76799595,166.17,166.04,6.76799595]
[1752504008339,6.76799595,166.17,166.07,6.76799595]
[1752504008536,6.76799595,166.17,166.09,6.0191]
[1752504008939,6.76799595,166.14,166.04,6.76799595]
[1752504009637,6.76799595,166.14,166.06,6.0202]
[1752504009836,6.76799595,166.14,166.04,6.76799595]
[1752504010235,6.76799595,166.14,166.08,6.0194]
[1752504010425,6.76799595,166.14,166.04,6.76799595]
[1752504010426,18.06,166.22,166.04,6.76799595]
[1752504010626,6.76799595,166.18,166.07,6.76799595]
[1752504010937,6.76799595,166.18,166.1,6.0188]
[1752504011133,6.76799595,166.18,166.07,6.76799595]
[1752504011832,6.76799595,166.18,166.11,6.0185]
[1752504012340,6.76799595,166.21,166.14,6.0172]
[1752504012539,18.06,166.25,166.1,6.76799595]
[1752504012835,6.76799595,166.24,166.14,6.0174]
[1752504013034,6.76799595,166.24,166.05,5.00889682]
[1752504013240,6.76799595,166.24,166.11,6.76799595]
[1752504013439,6.76799595,166.22,166.05,193.72889682]
[1752504013642,6.76799595,166.22,166.11,6.76799595]
[1752504014139,6.76799595,166.22,166.12,6.018]
[1752504014535,6.76799595,166.19,166.09,6.76799595]
[1752504014933,6.7652998,166.18,166.07,6.7652998]
[1752504015137,6.7652998,166.18,166.02,5.00889682]
[1752504015138,6.7652998,166.15,166.05,6.7652998]
[1752504015540,6.76592562,166.18,166.12,6.0181]
[1752504015838,6.76592562,166.18,166.06,6.76592562]
[1752504016638,6.76598845,166.17,166.06,6.76598845]
[1752504017136,6.76598845,166.17,166.09,6.0192]
[1752504017540,6.76598845,166.17,166.06,6.76598845]
[1752504017541,6.76598845,166.19,166.06,6.76598845]
[1752504017841,6.76598845,166.19,166.09,6.76598845]
[1752504018248,6.76598845,166.21,166.09,6.76598845]
[1752504018539,6.76598845,166.21,166.05,5.00889682]
[1752504018842,6.76598845,166.21,166.08,6.76598845]
[1752504019236,6.76598845,166.21,166.11,6.0184]
[1752504019442,6.76598845,166.21,166.08,6.76598845]
[1752504020040,6.76598845,166.21,166.12,6.0182]
[1752504020443,6.76598845,166.21,166.08,6.76598845]
[1752504020744,6.76598845,166.23,166.14,6.76598845]
[1752504020941,188.68,166.24,166.14,6.76598845]
[1752504021839,188.68,166.24,166.17,6.76598845]
[1752504022243,520.36,166.28,166.17,6.76598845]
[1752504022443,520.36,166.28,166.19,6.76598845]
[1752504022644,520.36,166.28,166.2,6.0152]
[1752504022849,520.36,166.28,166.19,6.76598845]
[1752504023240,520.36,166.28,166.13,5.00889682]
[1752504023437,520.36,166.28,166.21,6.76598845]
[1752504023946,520.36,166.28,166.22,6.0144]
[1752504024148,314.70610433,166.31,166.22,6.0144]
[1752504024544,314.70610433,166.31,166.21,6.76598845]
[1752504024844,314.70610433,166.31,166.19,6.76598845]
[1752504024845,6.76598845,166.3,166.19,6.76598845]
[1752504025348,6.76598845,166.3,166.22,6.0145]
[1752504025550,6.76598845,166.3,166.21,6.76598845]
[1752504025747,6.76598845,166.3,166.23,6.0139]
[1752504026050,520.04,166.36,166.25,6.76598845]
[1752504026245,526.80598845,166.36,166.25,12.77918845]
[1752504026437,6.76598845,166.32,166.16,17.04219682]
[1752504026643,6.76598845,166.32,166.21,6.76598845]
[1752504026845,520.04,166.36,166.25,6.76598845]
[1752504027050,526.80598845,166.36,166.25,6.76598845]
[1752504027248,526.80598845,166.36,166.26,6.0129]
[1752504027450,526.80598845,166.36,166.25,6.76598845]
[1752504028445,6.76598845,166.3,166.16,5.00889682]
[1752504028752,6.76598845,166.3,166.19,6.76598845]
[1752504028951,6.76598845,166.3,166.22,6.0145]
[1752504029243,6.76598845,166.3,166.19,6.76598845]
[1752504029548,6.76598845,166.3,166.23,6.0141]
[1752504030543,6.76598845,166.32,166.21,6.76598845]
[1752504030740,6.76598845,166.34,166.23,6.76598845]
[1752504030950,6.76598845,166.34,166.25,6.76598845]
[1752504031251,520.04,166.36,166.25,6.76598845]
[1752504031751,520.04,166.36,166.3,6.0115]
[1752504031949,520.04,166.36,166.27,6.76598845]
[1752504032346,520.04,166.36,166.29,6.012]
[1752504032553,520.04,166.36,166.27,6.76598845]
[1752504033154,520.04,166.36,166.28,6.0122]
[1752504033354,520.04,166.36,166.27,6.76598845]
[1752504033649,18.06,166.44,166.3,6.76598845]
[1752504033960,6.76598845,166.42,166.3,6.76598845]
[1752504034254,6.76598845,166.37,166.26,6.76598845]
[1752504034554,195.04598845,166.37,166.25,6.76598845]
[1752504034759,195.04598845,166.37,166.22,519.8]
[1752504034760,195.04598845,166.37,166.27,6.76598845]
[1752504035255,188.28,166.37,166.3,6.0115]
[1752504035452,188.28,166.37,166.31,6.76598845]
[1752504035753,188.28,166.37,166.22,519.8]
[1752504035954,188.28,166.37,166.29,6.76598845]
[1752504036350,188.28,166.37,166.31,6.011]
[1752504036952,188.28,166.37,166.32,6.0109]
[1752504037553,188.28,166.37,166.29,6.76598845]
[1752504037761,188.28,166.37,166.31,6.0111]
[1752504037955,188.28,166.37,166.29,6.76598845]
[1752504038353,188.28,166.37,166.28,6.76598845]
[1752504038757,188.28,166.37,166.22,519.8]
[1752504038960,6.76598845,166.35,166.22,519.8]
[1752504039260,6.76598845,166.35,166.23,6.76598845]
[1752504039561,6.76598845,166.35,166.25,6.76598845]
[1752504039962,195.04598845,166.37,166.27,6.76598845]
[1752504040463,195.04598845,166.37,166.31,6.0112]
[1752504040762,188.28,166.37,166.31,6.0112]
[1752504040951,188.28,166.37,166.21,6.76598845]
[1752504041158,195.04598845,166.37,166.26,6.76598845]
[1752504041758,195.04598845,166.37,166.29,6.0118]
[1752504042258,6.75339646,166.33,166.17,519.62]
[1752504042463,6.75475274,166.32,166.21,6.75475274]
[1752504043361,6.75475274,166.32,166.22,6.0145]
[1752504043663,6.75475274,166.29,166.19,6.75475274]
[1752504043961,6.75475274,166.31,166.25,6.0134]
[1752504044160,6.75475274,166.33,166.22,6.75475274]
[1752504044865,188.12,166.34,166.25,6.75475274]
[1752504045357,6.75475274,166.33,166.22,6.75475274]
[1752504045560,6.75475274,166.33,166.17,519.62]
[1752504045561,6.75475274,166.33,166.24,6.0137]
[1752504045761,6.75475274,166.33,166.2,6.75475274]
[1752504046065,6.75475274,166.31,166.2,6.75475274]
[1752504046668,6.75475274,166.31,166.25,6.0133]
[1752504047062,6.75475274,166.31,166.2,6.75475274]
[1752504047367,188.12,166.34,166.25,6.75348995]
[1752504047563,188.12,166.34,166.28,6.0122]
[1752504047763,188.12,166.34,166.25,6.75348995]
[1752504048060,188.12,166.34,166.23,6.75348995]
[1752504048667,188.12,166.34,166.29,6.012]
[1752504049159,6.74843375,166.39,166.28,6.74843375]
[1752504049362,6.74843375,166.39,166.26,6.74843375]
[1752504049563,6.74843375,166.37,166.26,6.74843375]
[1752504049760,6.74843375,166.37,166.3,6.0114]
[1752504050160,6.74843375,166.37,166.29,6.0118]
[1752504050358,6.74843375,166.34,166.24,6.74843375]
[1752504050559,6.75293621,166.34,166.23,6.75293621]
[1752504050755,188.04,166.37,166.26,6.75293621]
[1752504050962,188.04,166.38,166.26,6.75293621]
[1752504051157,6.75293621,166.36,166.26,6.75293621]
[1752504051364,6.75293621,166.36,166.24,6.75293621]
[1752504051766,6.75293621,166.36,166.28,6.0123]
[1752504051961,6.75293621,166.36,166.24,6.75293621]
[1752504053358,6.75293621,166.36,166.29,6.012]
[1752504053564,6.75293621,166.37,166.24,6.75293621]
[1752504054164,188.04,166.38,166.24,6.75293621]
[1752504054467,6.75293621,166.36,166.24,6.75293621]
[1752504054668,6.75293621,166.36,166.23,6.75293621]
[1752504055168,6.75293621,166.36,166.27,6.0126]
[1752504055469,6.75293621,166.36,166.23,6.75293621]
[1752504055665,6.75293621,166.36,166.29,6.0117]
[1752504055866,6.75293621,166.36,166.23,6.75293621]
[1752504056167,6.75293621,166.36,166.28,6.0122]
[1752504056365,6.75293621,166.36,166.23,6.75293621]
[1752504057359,6.75293621,166.36,166.3,6.0116]
[1752504057664,6.75293621,166.36,166.23,6.75293621]
[1752504057863,6.75293621,166.36,166.29,6.0119]
[1752504058671,194.79293621,166.38,166.28,6.75293621]
[1752504058868,188.04,166.38,166.35,6.0096]
[1752504059058,188.04,166.38,166.29,6.75293621]
[1752504059967,188.04,166.38,166.24,6.75293621]
[1752504060158,194.79293621,166.38,166.27,6.75293621]
[1752504060358,194.79293621,166.38,166.25,6.75293621]
[1752504060564,194.79293621,166.38,166.29,6.0118]
[1752504060767,6.75293621,166.35,166.25,6.75293621]
[1752504060974,6.75293621,166.35,166.27,6.0128]
[1752504061169,206.1,166.38,166.18,204.95402845]
[1752504061170,6.75293621,166.32,166.18,187.92]
[1752504061374,6.75293621,166.32,166.2,6.75293621]
[1752504061869,6.75293621,166.34,166.23,6.75293621]
[1752504062669,6.75293621,166.34,166.27,6.0128]
[1752504063971,6.75293621,166.34,166.23,6.75293621]
[1752504064172,537.58,166.39,166.26,6.75293621]
[1752504064370,714.13293621,166.39,166.26,6.75293621]
[1752504064774,714.13293621,166.39,166.22,5.00212845]
[1752504064775,6.75293621,166.33,166.22,11.75506466]
[1752504065069,6.75293621,166.33,166.26,6.0128]
[1752504065268,6.75293621,166.33,166.22,6.75293621]
[1752504065568,6.75293621,166.33,166.25,6.0132]
[1752504066469,6.75293621,166.33,166.22,6.75293621]
[1752504066470,6.75293621,166.33,166.24,6.0138]
[1752504066669,6.75293621,166.33,166.2,6.75293621]
[1752504066868,6.75293621,166.3,166.17,531.37506466]
[1752504067275,6.75293621,166.27,166.15,5.00212845]
[1752504067476,6.75293621,166.27,166.14,11.75506466]
[1752504068474,6.75293621,166.27,166.14,6.75293621]
[1752504068675,6.75293621,166.27,166.21,6.0147]
[1752504069178,6.75293621,166.27,166.2,6.0151]
[1752504069771,6.75293621,166.27,166.21,6.0146]
[1752504069974,6.75293621,166.27,166.14,6.75293621]
[1752504071972,6.75293621,166.27,166.2,6.0151]
[1752504072370,6.75293621,166.27,166.15,6.75293621]
[1752504072567,6.75293621,166.24,166.12,6.75293621]
[1752504073181,6.75293621,166.24,166.18,6.0158]
[1752504073676,6.75293621,166.24,166.13,6.75293621]
[1752504074271,524.5283851,166.29,166.16,6.75293621]
[1752504074272,6.75293621,166.26,166.16,6.75293621]
[1752504074477,6.75293621,166.28,166.16,6.75293621]
[1752504074674,519.66,166.29,166.22,6.75293621]
[1752504075476,519.66,166.29,166.19,6.75293621]
[1752504075783,6.75293621,166.27,166.17,6.75293621]
[1752504076079,519.66,166.29,166.17,6.75293621]
[1752504076680,519.66,166.29,166.2,6.75293621]
[1752504076975,519.66,166.29,166.26,6.0129]
[1752504077382,519.66,166.29,166.2,6.75293621]
[1752504078083,6.75293621,166.33,166.23,6.75293621]
[1752504078487,6.75293621,166.33,166.2,6.75293621]
[1752504078775,6.75293621,166.3,166.13,5.00212845]
[1752504078984,4.8683851,166.32,166.2,6.75293621]
[1752504079181,6.75293621,166.32,166.2,6.75293621]
[1752504079377,6.75293621,166.32,166.24,6.0136]
[1752504079879,194.55293621,166.34,166.23,6.75293621]
[1752504080273,194.55293621,166.34,166.27,6.0126]
[1752504080477,194.55293621,166.34,166.23,6.75293621]
[1752504080877,187.8,166.34,166.23,6.75293621]
[1752504081083,187.8,166.34,166.26,6.75293621]
[1752504082178,187.8,166.34,166.3,6.0115]
[1752504082878,187.8,166.34,166.26,6.75293621]
[1752504083181,187.8,166.34,166.23,6.75293621]
[1752504083383,187.8,166.34,166.27,6.0127]
[1752504083680,6.75293621,166.33,166.22,6.75293621]
[1752504083873,6.75293621,166.33,166.26,6.0129]
[1752504084072,6.75293621,166.33,166.22,6.75293621]
[1752504084979,6.75293621,166.33,166.28,6.0121]
[1752504085185,6.75293621,166.33,166.22,6.75293621]
[1752504085882,6.75293621,166.33,166.28,6.0124]
[1752504086082,6.75293621,166.33,166.22,6.75293621]
[1752504086282,187.8,166.34,166.28,6.0123]
[1752504086985,6.75293621,166.32,166.22,6.75293621]
[1752504088089,6.75293621,166.32,166.26,6.013]
[1752504088490,6.75293621,166.32,166.22,6.75293621]
[1752504088677,6.75293621,166.32,166.18,17.03432845]
[1752504088877,6.75293621,166.32,166.21,6.75293621]
[1752504089888,6.75293621,166.32,166.27,6.0126]
[1752504090682,6.75293621,166.32,166.26,6.013]
[1752504090885,6.75293621,166.32,166.21,6.75293621]
[1752504091486,6.75293621,166.32,166.25,6.0132]
[1752504091785,6.75293621,166.32,166.2,6.75293621]
[1752504091991,194.55293621,166.34,166.23,6.75293621]
[1752504092386,194.55293621,166.34,166.19,5.00212845]
[1752504092586,194.55293621,166.34,166.23,6.75293621]
[1752504092789,194.31293621,166.34,166.23,6.75293621]
[1752504094093,194.31293621,166.34,166.29,6.0118]
[1752504094385,194.31293621,166.34,166.2,5.04281089]
[1752504094589,6.75345564,166.33,166.19,5.04281089]
[1752504094792,6.75345564,166.33,166.18,17.07501089]
[1752504095091,194.31463041,166.34,166.21,6.75463041]
[1752504095384,194.31463041,166.34,166.28,6.0123]
[1752504095690,187.56,166.34,166.29,6.0118]
[1752504095881,187.56,166.34,166.24,6.75463041]
[1752504096287,187.56,166.34,166.28,6.0122]
[1752504097100,187.56,166.34,166.24,6.75463041]
[1752504098190,187.56,166.34,166.27,6.0126]
[1752504098393,187.56,166.34,166.2,12.0303]
[1752504098590,187.56,166.34,166.26,6.0131]
[1752504098792,6.75463041,166.33,166.26,6.0131]
[1752504098994,187.56,166.34,166.2,6.75463041]
[1752504098995,6.75463041,166.3,166.2,6.75463041]
[1752504099790,6.75463041,166.3,166.24,6.0139]
[1752504100394,6.75463041,166.3,166.25,6.0133]
[1752504100592,6.75463041,166.3,166.2,6.75463041]
[1752504100991,6.75463041,166.3,166.26,6.013]
[1752504101397,6.75463041,166.3,166.25,6.0134]
[1752504101593,6.75463041,166.3,166.2,6.75463041]
[1752504101992,6.75463041,166.3,166.25,6.0132]
[1752504102193,6.75463041,166.3,166.2,6.75463041]
[1752504102397,6.75463041,166.32,166.2,6.75463041]
[1752504102691,199.24943846,166.34,166.23,6.75463041]
[1752504102892,194.31463041,166.34,166.23,6.75463041]
[1752504103192,194.31463041,166.34,166.27,6.0125]
[1752504103389,18.06,166.3,166.2,5.04281089]
[1752504103593,6.75463041,166.28,166.14,12.0349]
[1752504103789,187.4,166.27,166.15,6.75463041]
[1752504103994,194.15463041,166.27,166.15,6.75463041]
[1752504104691,194.15463041,166.27,166.21,6.0148]
[1752504105593,187.4,166.27,166.18,6.75463041]
[1752504105790,187.36,166.3,166.18,6.75463041]
[1752504105994,187.36,166.3,166.27,6.0128]
[1752504106201,187.36,166.3,166.21,6.75463041]
[1752504106699,187.36,166.3,166.29,6.0121]
[1752504107001,187.36,166.3,166.21,6.75463041]
[1752504107002,187.36,166.3,166.24,6.75463041]
[1752504107299,524.65480805,166.36,166.24,6.75463041]
[1752504107499,707.08,166.36,166.24,6.75463041]
[1752504107902,707.08,166.36,166.22,5.04281089]
[1752504108099,6.75463041,166.35,166.23,6.75463041]
[1752504108604,6.75463041,166.35,166.28,6.0122]
[1752504108803,4.93480805,166.35,166.2,5.04281089]
[1752504109101,6.75463041,166.32,166.27,6.0125]
[1752504109495,187.34,166.31,166.27,6.0125]
[1752504109800,187.34,166.31,166.26,6.013]
[1752504110003,187.34,166.31,166.21,6.75463041]
[1752504110904,187.34,166.31,166.27,6.0126]
[1752504111602,187.34,166.31,166.22,6.75463041]
[1752504112301,187.34,166.31,166.3,6.0117]
[1752504113200,187.26,166.35,166.31,6.0112]
[1752504113698,187.26,166.35,166.29,6.0118]
[1752504113903,192.19480805,166.35,166.29,6.0118]
[1752504114501,187.24,166.34,166.3,6.0117]
[1752504114700,187.24,166.34,166.25,6.75463041]
[1752504115608,187.24,166.34,166.27,6.0126]
[1752504115796,192.17480805,166.34,166.27,6.0126]
[1752504115999,6.75463041,166.33,166.21,6.75463041]
[1752504116199,6.75463041,166.33,166.28,6.0124]
[1752504116395,11.68943846,166.33,166.28,6.0124]
[1752504116807,11.68943846,166.33,166.27,6.0127]
[1752504117004,11.68943846,166.33,166.21,6.75463041]
[1752504117309,6.75463041,166.3,166.17,5.04281089]
[1752504117604,6.75463041,166.27,166.16,11.7974413]
[1752504117905,6.75463041,166.27,166.22,6.0145]
[1752504118107,6.75463041,166.27,166.16,11.7974413]
[1752504118306,187.2,166.29,166.19,6.75463041]
[1752504118701,187.2,166.29,166.16,5.04281089]
[1752504118903,6.75463041,166.28,166.23,6.0141]
[1752504119800,6.75463041,166.28,166.22,6.0146]
[1752504120001,6.75463041,166.28,166.15,531.5174413]
[1752504120198,11.68943846,166.28,166.15,531.5174413]
[1752504120402,6.75463041,166.25,166.21,6.015]
[1752504120610,6.75463041,166.25,166.15,5.04281089]
[1752504120903,6.75463041,166.19,166.07,11.72133998]
[1752504121108,4.93480805,166.2,166.1,6.75463041]
[1752504121312,6.49797792,166.22,166.17,6.0162]
[1752504121313,187.14,166.21,166.17,6.0162]
[1752504121506,187.14,166.21,166.1,6.75463041]
[1752504121711,6.75463041,166.23,166.1,11.7974413]
[1752504121911,4.93480805,166.25,166.1,11.7974413]
[1752504121912,187.14,166.25,166.13,6.75463041]
[1752504122411,192.07480805,166.25,166.19,6.0157]
[1752504122903,187.14,166.25,166.13,6.75463041]
[1752504123405,524.61480805,166.26,166.16,6.75463041]
[1752504123612,519.68,166.26,166.24,6.0138]
[1752504124015,519.68,166.26,166.19,6.75463041]
[1752504124016,187.12,166.28,166.19,6.75463041]
[1752504124219,187.12,166.28,166.27,6.0128]
[1752504125216,187.12,166.28,166.19,6.75463041]
[1752504125419,187.12,166.28,166.17,11.7974413]
[1752504125619,187.12,166.28,166.17,6.75463041]
[1752504126010,187.12,166.28,166.14,12.0348]
[1752504126210,187.12,166.28,166.23,6.014]
[1752504126412,187.12,166.28,166.17,6.75463041]
[1752504126813,187.12,166.28,166.23,6.014]
[1752504127020,187.12,166.28,166.17,6.75463041]
[1752504127323,187.12,166.28,166.25,6.0135]
[1752504127520,187.12,166.28,166.17,6.75463041]
[1752504127822,193.87463041,166.28,166.22,6.0144]
[1752504128023,193.87463041,166.28,166.17,6.75463041]
[1752504128024,187.12,166.28,166.17,6.75463041]
[1752504128222,187.12,166.28,166.2,6.75463041]
[1752504128818,187.12,166.28,166.25,6.0133]
[1752504129018,187.12,166.28,166.2,6.75463041]
[1752504130120,187.12,166.28,166.18,6.75463041]
[1752504130725,187.12,166.28,166.23,6.014]
[1752504131225,187.04,166.29,166.21,6.75463041]
[1752504131622,187.04,166.29,166.24,6.75463041]
[1752504131823,187.04,166.29,166.28,6.0124]
[1752504132416,519.72,166.34,166.24,6.75463041]
[1752504132621,187.02,166.33,166.24,6.75463041]
[1752504133527,187.02,166.33,166.2,5.04281089]
[1752504133728,187.02,166.33,166.29,6.0118]
[1752504133936,193.77463041,166.33,166.21,6.75463041]
[1752504134221,6.75463041,166.32,166.21,6.75463041]
[1752504134427,191.95480805,166.33,166.22,6.75463041]
[1752504134826,6.75463041,166.31,166.2,6.75463041]
[1752504135332,4.93480805,166.31,166.2,6.75463041]
[1752504135526,6.75463041,166.3,166.2,6.75463041]
[1752504135927,4.93480805,166.31,166.2,6.75463041]
[1752504136128,11.68943846,166.32,166.2,6.75463041]
[1752504136729,6.75463041,166.32,166.2,6.75463041]
[1752504136932,11.68943846,166.32,166.2,6.75463041]
[1752504137633,191.95480805,166.33,166.23,6.75463041]
[1752504137933,6.75463041,166.29,166.19,6.75463041]
[1752504138133,186.92,166.28,166.17,11.7974413]
[1752504138335,6.75463041,166.26,166.14,18.78933041]
[1752504140738,6.75463041,166.26,166.22,6.0145]
[1752504141435,186.92,166.28,166.14,18.78933041]
[1752504141733,193.67463041,166.28,166.17,6.75463041]
[1752504141940,4.93480805,166.29,166.2,6.75463041]
[1752504142139,191.79480805,166.3,166.2,6.75463041]
[1752504142344,186.86,166.3,166.2,6.75463041]
[1752504142537,193.61463041,166.3,166.2,6.75463041]
[1752504142840,186.86,166.3,166.2,6.75463041]
[1752504143341,186.86,166.3,166.25,6.0133]
[1752504143535,186.86,166.3,166.2,6.75463041]
[1752504144142,191.79480805,166.3,166.24,6.0136]
[1752504144441,186.86,166.3,166.24,6.0136]
[1752504144641,191.79480805,166.3,166.18,6.75463041]
[1752504144934,186.84,166.29,166.18,6.75463041]
[1752504145134,186.84,166.29,166.24,6.0137]
[1752504145536,186.84,166.29,166.26,6.0131]
[1752504145739,524.65480805,166.34,166.21,6.75463041]
[1752504146040,524.65480805,166.34,166.27,6.75463041]
[1752504146238,519.72,166.34,166.27,6.75463041]
[1752504146737,519.72,166.34,166.29,6.0118]